Cogmind - Beta 10.2 *** ADVENTURER MODE // 2021.05.25 @ 13:28:31 Player: nacho Result: Destroyed by D-53 Grenadier with Mini Grenade Launcher Performance ------------- Evolutions (0) 0 Regions Visited (4) 800 Robots Destroyed (16) 80 Value Destroyed (89) 89 Prototype IDs (3) 60 Alien Tech Used (0) 0 Bonus (0) 0 TOTAL SCORE: 1029 Bonus ------- None Cogmind --------- Core Integrity 0/250 Matter 283/300 Energy 100/100 System Corruption 0% Temperature Cool (0) Movement Core (150) Ox2 Location -9/Mines Parts ------- > --- POWER (1) -------- (None) > --- PROPULSION (2) --- (None) > --- UTILITY (2) ------ Medium Storage Unit > --- WEAPON (2) ------- (None) > --- INVENTORY (8) ---- Ion Engine Sensor Array Peak State ------------ > --- POWER ------------ Ion Engine > --- PROPULSION ------- Wheel Wheel > --- UTILITY ---------- Small Storage Unit Improved Terrain Scanner > --- WEAPON ----------- EM Pulse Gun Small Laser > --- INVENTORY -------- Ion Engine Light Ion Engine Compact Wheel Tractor Beam Light Assault Rifle [Rating: 8] Favorites ----------- Power Ion Engine Engine Ion Engine Propulsion Wheel Wheel Wheel Flight Unit Flight Unit Utility Small Storage Unit Device Improved Terrain Scanner Storage Small Storage Unit Weapon Small Laser Energy Gun Small Laser Ballistic Gun Light Assault Rifle Launcher Grenade Launcher Build | -11 -10 -10 -10 -9 ------- Run | Scr Mat Min Exi Min Slots Evolved . | . . . . . Power . | . . . . . Propulsion . | . . . . . Utility . | . . . . . Weapon . | . . . . . Parts Attached 18 | 8 1 4 3 2 Power 2 | 1 . . 1 . Engine 2 | 1 . . 1 . Core . | . . . . . Reactor . | . . . . . Propulsion 6 | 2 . 4 . . Treads . | . . . . . Leg . | . . . . . Wheel 4 | 2 . 2 . . Hover . | . . . . . Flight 2 | . . 2 . . Utility 5 | 3 . . 2 . Device 3 | 2 . . 1 . Storage 2 | 1 . . 1 . Processor . | . . . . . Hackware . | . . . . . Protection . | . . . . . Artifact . | . . . . . Weapon 5 | 2 1 . . 2 Energy Gun 3 | 2 1 . . . Energy Cannon . | . . . . . Ballistic Gun 1 | . . . . 1 Ballistic Cannon . | . . . . . Launcher 1 | . . . . 1 Special Weapon . | . . . . . Impact Weapon . | . . . . . Slashing Weapon . | . . . . . Piercing Weapon . | . . . . . Special Melee Weapon . | . . . . . Unidentified Prototypes . | . . . . . Parts Lost 8 | . . . . 8 Power 1 | . . . . 1 Propulsion 2 | . . . . 2 Utility 1 | . . . . 1 Weapon 4 | . . . . 4 Highest Loss Streak 8 | . . . . 8 Average Slot Usage (%) 93 | . 100 96 88 83 Engine 10 | . 14 14 3 9 Wheel 22 | . 28 14 28 21 Flight 3 | . . 10 . . Device 13 | . 14 14 13 14 Storage 14 | . 14 14 14 14 Energy Gun 26 | . 28 28 28 18 Naked Turns . | . . . . . Heaviest Build 16 | 13 13 12 16 16 Greatest Support 20 | 20 20 20 20 20 Greatest Overweight (x) 3 | . . 3 . 3 Average Overweight (x) . | . . . . . Largest Inventory Capacity 8 | 6 6 6 8 8 Average Capacity 6 | 5 6 6 6 8 Most Carried 6 | 6 6 6 6 4 Average Carried 4 | 2 5 5 5 3 Final Capacity 8 | 6 6 6 8 8 Final Carried 6 | 6 6 5 4 2 Class Distribution -------------------- 100% | Mutant Dominant Class ---------------- Mutant | -10/Materials Mutant | -10/Mines Mutant | -10/Exiles Mutant | -9/Mines Resources | -11 -10 -10 -10 -9 ----------- Run | Scr Mat Min Exi Min Matter Collected 338 | 280 10 40 . 8 Remotely 136 | 136 . . . . Salvage Created 430 | 157 131 113 . 29 Parts 35 | 10 12 13 . . Haulers Intercepted . | . . . . . Recyclers Shooed 1 | . 1 . . . Parts Field Recycled . | . . . . . Retrieved Matter . | . . . . . Parts Self-Destructed . | . . . . . Prevented . | . . . . . Kills | -11 -10 -10 -10 -9 ------- Run | Scr Mat Min Exi Min Combat Hostiles Destroyed 9 | . . 3 . 6 Guns 7 | . . 3 . 4 AOE 2 | . . . . 2 Classes Destroyed 6 | 2 2 1 . 1 Worker 4 | . 2 2 . . Builder 3 | . 2 1 . . Tunneler 4 | 4 . . . . Recycler 2 | 1 1 . . . Swarmer 3 | . . 3 . . Assembled 6 | . . . . 6 Best Kill Streak 6 | 5 5 3 . 6 Combat Bots Only 6 | . . 3 . 6 Max Kills in Single Turn 2 | 1 1 2 . 2 Gunslinging 1 | . . 1 . . Exploded 2 | . . . . 2 Melee . | . . . . . Uniques/NPCs Destroyed . | . . . . . Combat | -11 -10 -10 -10 -9 -------- Run | Scr Mat Min Exi Min Damage Taken 698 | . 8 28 . 662 Core 253 | . . 4 . 249 Absorbed by Shields . | . . . . . Core Remaining (%) 100 | 100 . . . . Volleys Fired 30 | 6 7 7 1 9 Largest 2 | 2 2 2 2 2 Hottest 80 | 80 80 80 80 80 Shots Fired 54 | 12 14 14 2 12 Gun 53 | 12 14 14 2 11 Cannon . | . . . . . Launcher 1 | . . . . 1 Special . | . . . . . Kinetic 5 | . . . . 5 Thermal 42 | 6 14 14 2 6 Explosive 1 | . . . . 1 Electromagnetic 6 | 6 . . . . Robot Hit Streak 10 | 8 3 10 . 8 Robot Miss Streak 2 | . 2 1 . 1 Penetration Max . | . . . . . Secondary Targets 2 | . . 2 . . Max Gunslinging Chain 1 | . . 1 . . Shots Hit Robots 36 | 8 8 10 . 10 Core Hits 33 | 5 6 6 . 16 Critical Hits . | . . . . . Critical Kills . | . . . . . Critical Parts Destroyed . | . . . . . Melee Attacks . | . . . . . Impact . | . . . . . Slashing . | . . . . . Piercing . | . . . . . Sneak Attacks . | . . . . . Combat Hostiles . | . . . . . Follow-up Attacks . | . . . . . Damage Inflicted 709 | 141 113 110 . 345 Guns 436 | 103 113 110 . 110 Cannons . | . . . . . Explosions 273 | 38 . . . 235 Melee . | . . . . . Ramming . | . . . . . Kinetic 40 | . . . . 40 Thermal 352 | 59 113 110 . 70 Explosive 235 | . . . . 235 Electromagnetic 82 | 82 . . . . Impact . | . . . . . Slashing . | . . . . . Piercing . | . . . . . Highest Corruption . | . . . . . Average Corruption . | . . . . . Corruption Purged . | . . . . . Overload Shots . | . . . . . Overflow Damage 8 | 8 . . . . Projectiles . | . . . . . Explosions 8 | 8 . . . . Melee . | . . . . . Knockbacks . | . . . . . Impact . | . . . . . Kinetic . | . . . . . Secondary . | . . . . . Self-Inflicted Damage 20 | . . . . 20 Shots 1 | . . . . 1 Rammed . | . . . . . Targets Rammed . | . . . . . Kicked . | . . . . . Crushed . | . . . . . Highest Temperature 109 | 74 36 54 3 109 Average Temperature 31 | 31 17 24 2 68 Received Heat Transfer 86 | . 6 . . 80 Siege Activations . | . . . . . Robots Corrupted . | . . . . . Combat Hostiles . | . . . . . Parts Fried . | . . . . . Impact Corruptions . | . . . . . Robots Melted . | . . . . . Combat Hostiles . | . . . . . Parts Melted 1 | . 1 . . . Heat Transferred 750 | 100 250 250 . 150 Parts Sabotaged . | . . . . . Parts Stolen . | . . . . . Parts Stripped . | . . . . . Power Chain Reactions 1 | 1 . . . . Missiles Intercepted . | . . . . . Alert | -11 -10 -10 -10 -9 ------- Run | Scr Mat Min Exi Min Peak Influence 97 | 25 38 97 . . Initial 13 | . 13 12 . . Average 38 | 9 19 78 . . Maximum Alert Level . | . . . . . Low Security (%) 100 | 100 100 100 . 100 Level 1 . | . . . . . Level 2 . | . . . . . Level 3 . | . . . . . Level 4 . | . . . . . Level 5 . | . . . . . High Security . | . . . . . Max Security . | . . . . . Squads Dispatched . | . . . . . Investigation . | . . . . . Extermination . | . . . . . Reinforcement . | . . . . . Assault . | . . . . . Garrison . | . . . . . Intercept . | . . . . . Construction Impeded . | . . . . . Haulers Reinforced . | . . . . . Stealth | -11 -10 -10 -10 -9 --------- Run | Scr Mat Min Exi Min Distress Signals 1 | . 1 . . . Communications Jammed . | . . . . . Distress Signals . | . . . . . Times Spotted 22 | . 3 3 . 16 Peak Tracking Total 12 | . 3 2 . 12 Tactical Retreats 1 | . . . . 1 Traps | -11 -10 -10 -10 -9 ------- Run | Scr Mat Min Exi Min Traps Triggered . | . . . . . Indirectly . | . . . . . Trap Hack Attempts . | . . . . . Triggered . | . . . . . Disarmed . | . . . . . Reprogrammed . | . . . . . Reused . | . . . . . Traps Extracted . | . . . . . Installed . | . . . . . Triggered . | . . . . . Machines | -11 -10 -10 -10 -9 ---------- Run | Scr Mat Min Exi Min Machines Disabled . | . . . . . Max in Single Turn . | . . . . . Machines Sabotaged . | . . . . . Garrisons Compromised . | . . . . . Overloaded Fab Kills . | . . . . . Fab Network Shutdowns . | . . . . . Hacking | -11 -10 -10 -10 -9 --------- Run | Scr Mat Min Exi Min Machines Accessed 3 | . 2 . 1 . Terminals 2 | . 2 . . . Fabricators . | . . . . . Repair Stations . | . . . . . Recycling Units . | . . . . . Scanalyzers . | . . . . . Garrison Access . | . . . . . Total Hacks 29 | . 6 . 23 . Successful 25 | . 2 . 23 . Failed 4 | . 4 . . . Catastrophic . | . . . . . Database Lockouts . | . . . . . Manual . | . . . . . Terminals 6 | . 6 . . . Fabricators . | . . . . . Repair Stations . | . . . . . Recycling Units . | . . . . . Scanalyzers . | . . . . . Garrison Access . | . . . . . Terminal Hacks 25 | . 2 . 23 . Record 23 | . . . 23 . Prototype ID Bank 1 | . 1 . . . Registered Prototypes 1 | . 1 . . . Fabricator Hacks . | . . . . . Repair Station Hacks . | . . . . . Recycling Unit Hacks . | . . . . . Scanalyzer . | . . . . . Garrison Access Hacks . | . . . . . Unauthorized Hacks . | . . . . . Terminals . | . . . . . Fabricators . | . . . . . Repair Stations . | . . . . . Recycling Units . | . . . . . Scanalyzers . | . . . . . Garrison Access . | . . . . . Data Cores Recovered . | . . . . . Used . | . . . . . Hacking Detections 2 | . 2 . . . Full Trace Events 1 | . 1 . . . Feedback Events . | . . . . . Feedback Blocked . | . . . . . Robot Schematics Acquired . | . . . . . Robots Built . | . . . . . Matter . | . . . . . Time . | . . . . . Total Robot Build Rating . | . . . . . Part Schematics Acquired . | . . . . . Parts Built . | . . . . . Matter . | . . . . . Time . | . . . . . Total Part Build Rating . | . . . . . Parts Repaired . | . . . . . Time . | . . . . . Parts Recycled . | . . . . . Recycled Matter . | . . . . . Retrieved Matter . | . . . . . Retrieved Components . | . . . . . Parts Scanalyzed . | . . . . . Part Schematics Acquired . | . . . . . Parts Damaged . | . . . . . Bothacking | -11 -10 -10 -10 -9 ------------ Run | Scr Mat Min Exi Min Used RIF Installer . | . . . . . Robots Hacked . | . . . . . Non-combat . | . . . . . Combat . | . . . . . Robot Hacks Applied . | . . . . . Relay Couplers Released . | . . . . . Robots Rewired . | . . . . . Allies Hacked . | . . . . . Hacks Repelled . | . . . . . Allies | -11 -10 -10 -10 -9 -------- Run | Scr Mat Min Exi Min Total Allies . | . . . . . Largest Group . | . . . . . Highest-Rated Group . | . . . . . Highest-Rated Ally . | . . . . . Total Orders . | . . . . . Ally Attacks . | . . . . . Total Damage . | . . . . . Kills . | . . . . . Allies Corrupted . | . . . . . Allies Melted . | . . . . . Intel | -11 -10 -10 -10 -9 ------- Run | Scr Mat Min Exi Min Robot Analysis Total . | . . . . . Derelict Logs Recovered 2 | . . 2 . . Drone Launches . | . . . . . Drone Recoveries . | . . . . . Exploration | -11 -10 -10 -10 -9 ------------- Run | Scr Mat Min Exi Min Turns Passed 645 | 93 147 194 145 66 Spaces Moved 584 | 60 151 163 163 47 Core 21 | 10 . 8 . 3 Treads . | . . . . . Legs . | . . . . . Wheels 512 | 50 151 104 163 44 Hover . | . . . . . Flight 51 | . . 51 . . Fastest Speed 50 | 50 80 80 80 80 Average Speed 84 | 75 80 97 80 85 Slowest Speed 200 | 80 80 200 80 200 Overloaded Moves . | . . . . . Propulsion Burnouts . | . . . . . Robots Hopped . | . . . . . Cave-ins Triggered . | . . . . . Exploration Rate (%) 25 | 4 25 35 48 13 Regions Visited 4 Branch Regions 3 Pre-discovered Areas 3 | . . 2 1 . Known Exits Taken . | . . . . . Unknown Exits Taken 4 | 1 1 1 1 . Scrap Searched . | . . . . . Spaces Dug . | . . . . . Terrain Destroyed 15 | 3 . . . 12 Melee . | . . . . . Projectile . | . . . . . AOE 15 | 3 . . . 12 Terrain Rammed . | . . . . . Walls Destroyed . | . . . . . Machines Disabled . | . . . . . Actions | -11 -10 -10 -10 -9 --------- Run | Scr Mat Min Exi Min Total 686 | 97 163 187 177 62 Wait 10 | 6 . . . 4 Move 580 | 59 150 162 162 47 Hop . | . . . . . Pick Up 28 | 15 2 6 5 . Fast Attach 3 | . 1 1 1 . Attach 15 | 8 . 3 2 2 Detach 2 | 1 . . 1 . Swap . | . . . . . Drop 18 | 2 3 8 5 . Fire 30 | 6 7 7 1 9 Melee . | . . . . . Ram . | . . . . . Kick . | . . . . . Crush . | . . . . . Escape Stasis . | . . . . . Rewire . | . . . . . Trap . | . . . . . Miscellaneous . | . . . . . Route ------- -11/Scrapyard -10/Materials -10/Mines -10/Exiles -9/Mines History --------- Turn | Location | Event 11 | -11/Scrapyard | Discovered new exit (range 16) 94 | -11/Scrapyard | Entered Materials 236 | -10/Materials | Discovered new exit (range 7) 241 | -10/Materials | Entered Mines 242 | -10/Mines | Learned location of Storage (-8) 265 | -10/Mines | Learned Materials stockpile data 317 | -10/Mines | Build established: Mutant 370 | -10/Mines | YI-UF0 nonchalantly dropped a Grenade Launcher on the ground 407 | -10/Mines | Found a hidden stash of uninstalled traps 432 | -10/Mines | Discovered new exit (range 5) 435 | -10/Mines | Entered Exiles 462 | -10/Exiles | Met 8R-AWN 473 | -10/Exiles | Met EX-HEX 513 | -10/Exiles | Met EX-DEC 517 | -10/Exiles | Learned location of Zion (-7) 573 | -10/Exiles | Discovered new exit (range 10) 580 | -10/Exiles | Entered Mines 593 | -9/Mines | Assembled infested the area 643 | -9/Mines | Core integrity fell below 50% 645 | -9/Mines | Core integrity fell below 20% 646 | -9/Mines | Destroyed by D-53 Grenadier with Mini Grenade Launcher Last Messages --------------- 00626_ Wheel destroyed. 00628_ Ion Engine destroyed. 00629_ Sml. Laser destroyed. 00630_ as-24839 destroyed. 00630_ as-80079 destroyed. 00631_ Wheel destroyed. 00631_ as-17593 destroyed. 00631_ Grenade Launcher destroyed. 00633_ Knocked back. 00633_ as-94740 destroyed. 00634_ as-68783 destroyed. 00636_ Acquired 8 matter. 00638_ as-86968 destroyed. 00640_ as-27176 destroyed. 00641_ The unstable cave ceiling collapses. 00642_ as-73219 destroyed. 00643_ Sensor Array destroyed. 00643_ Lgt. Assault Rifle destroyed. 00643_ as-58588 destroyed. 00645_ The unstable cave ceiling collapses. Map ----- +----------------------------------------------------+ | ?????????? ?????????????????????????????? | | ?????????? ?????????????????????????????? | | ??????????? ?????????????????????????????? | | ??????????? ?????????????????????????????? | | ???????????# ?????????????????????????????? | | ???????????# ???????????#?????????????????? | | ???????????# ##??????? ??????????????????? | | ???????????# ####### ????????????????????? | | ???????????# % ?????????????????????? | | ???????????# ???????????????????????? | | ????????????# #????????????????????????? | | ????????????# #?????????????????????????? | | ?????????????# #?????????????????????????? | | ?????????????## ##????????????????????????? | | ????????????### #????????????????????????? | | ????????????# # #????????????????????????? | | ????????????? % #????????????????????????? | | ?????????###?# ###??????????????????????? | | ????????## ## # ###????????????????????? | | ????????# ##???????????????????? | | ????????# d ##??????????????????? | | ????????# d ##?????????????????? | | ????????## # ##????????????????? | | ?????????## #????????????????? | | ?????????# #????????????????? | | ?????????# t @ ##????????????????? | | ????????# # #????????????????? | | ????????## #????????????????? | | ???????## % ## #????????????????? | | ??????## #?## ###????????????????? | | ??????# #???########??????????????????? | | ??????# #?????????????????????????????? | | ??????## #????????????????????????????? | | ???????## #???????????????????????????? | | ????????## ??????????????????????????? | | ?????????## ????????????????????????? | | ??????????### # ##???????????????????????? | | ?????????????#### #????????????????????????? | | ??????????????????#????????????????????????? | | ???????????????????????????????????????????? | | ???????????????????????????????????????????? | | ???????????????????????????????????????????? | | ???????????????????????????????????????????? | | ???????????????????????????????????????????? | | ???????????????????????????????????????????? | | ???????????????????????????????????????????? | | ???????????????????????????????????????????? | | ???????????????????????????????????????????? | | ???????????????????????????????????????????? | | ???????????????????????????????????????????? | +----------------------------------------------------+ Best States ------------- Heat Dissipation 25 Energy Generation 10 Energy Capacity 250 Matter Stores 300 Matter Capacity 300 Sight Range 16 Robot Scan Range 10 Terrain Scan Range 16 Terrain Scan Density 10 Resistance: KI 20 Resistance: TH 20 Resistance: EX 20 Resistance: EM 20 Resistance: I 20 Resistance: S 20 Resistance: P 20 Evasion (%) 50 Offensive Hacking 10 Item Schematics ----------------- None Robot Schematics ------------------ None Fabricated ------------ Nothing Alien Tech Used ----------------- None Achievements -------------- None Challenges ------------ None Game ------ Seed AngularInsulationMeganuke Manual? 0 Play Time 00:12:36 Cumulative 30.4 hours Start 2021.05.25 @ 13:17:21 End 2021.05.25 @ 13:28:31 Sessions 1 Manual Loads 0 Difficulty Adventurer Special Mode None Game No. 13 Rogue 1 Adventurer 12 Explorer 0 Win Type - Total 0 Types 0/0/0/0/0/0/0/0/0 Lore% 12 Gallery% 24 Achievement% 19 Wizard Run 0 Options --------- ASCII 0 Keyboard 0 Movement Mouse Keybinds 0 Fullscreen 1 Font 12/Smallcaps Map View 83x54 Tactical HUD 1 Map Filters NONE Filters NONE Steam 1 RUN: 63ad110a-e68c-496c-be34-06538ab2af38